[Event "SUNWAY"]
[Date "2016.12.17"]
[Round "2.8"]
[White "Zubov, Alexander"]
[Black "Cruz, Filemon"]
[Result "1-0"]
[WhiteElo "2606"]
[BlackElo "2355"]
[ECO "E14"]
[WhiteFed "UKR"]
[BlackFed "PER"]
[FCGameId "-298410610"]
[TimeControl "5400+30"]

1. d4 {[%clk 1:28:47]} Nf6 {[%clk 1:30:31]} 2. c4 {[%clk 1:29:03]} e6  {[%clk 1:30:21]} 3. Nf3 {[%clk 1:29:07]} b6 {[%clk 1:30:26]} 4. e3  {[%clk 1:29:24]} Bb7 {[%clk 1:30:23]} 5. Bd3 {[%clk 1:29:46]} Be7  {[%clk 1:30:23]} 6. O-O {[%clk 1:28:41]} O-O {[%clk 1:30:06]} 7. b3  {[%clk 1:29:03]} c5 {[%clk 1:29:56]} 8. Bb2 {[%clk 1:29:21]} cxd4  {[%clk 1:29:19]} 9. exd4 {[%clk 1:29:44]} d5 {[%clk 1:29:24]} 10. Qe2  {[%clk 1:28:56]} Nbd7 {[%clk 1:27:15]} 11. Nbd2 {[%clk 1:27:15]} dxc4  {[%clk 1:23:58]} 12. bxc4 {[%clk 1:27:43]} Re8 {[%clk 1:23:36]} 13. Ng5  {[%clk 1:26:27]} Nf8 {[%clk 1:23:04]} 14. f4 {[%clk 1:25:28]} h6  {[%clk 1:20:50]} 15. Ngf3 {[%clk 1:25:24]} Qc7 {[%clk 1:20:26]} 16. Ne5  {[%clk 1:25:24]} Bd6 {[%clk 1:15:35]} 17. a4 {[%clk 1:24:59]} Rac8  {[%clk 1:08:14]} 18. a5 {[%clk 1:21:53]} N8d7 {[%clk 1:07:35]} 19. a6  {[%clk 1:20:47]} Ba8 {[%clk 1:07:49]} 20. Nb1 {[%clk 1:21:14]} Bb4  {[%clk 1:06:53]} 21. Ra4 {[%clk 1:10:58]} Qd6 {[%clk 1:02:26]} 22. Na3  {[%clk 1:10:35]} Bxa3 {[%clk 1:02:45]} 23. Rxa3 {[%clk 1:11:03]} Nb8  {[%clk 1:01:00]} 24. Bb1 {[%clk 1:07:59]} Nc6 {[%clk 1:00:41]} 25. Rd1  {[%clk 1:08:06]} Red8 {[%clk 0:59:19]} 26. Rg3 {[%clk 1:05:31]} Ne7  {[%clk 0:44:41]} 27. Ng4 {[%clk 1:04:31]} Nxg4 {[%clk 0:44:27]} 28. Qxg4  {[%clk 1:04:51]} g6 {[%clk 0:44:40]} 29. Ba3 {[%clk 0:49:32]} Qd7  {[%clk 0:42:07]} 30. Bxe7 {[%clk 0:45:07]} Qxe7 {[%clk 0:42:31]} 31. Bxg6  {[%clk 0:45:27]} Kf8 {[%clk 0:42:38]} 32. Qh5 {[%clk 0:37:04]} fxg6  {[%clk 0:28:28]} 33. Qxg6 {[%clk 0:35:37]} 1-0

[Event "SUNWAY"]
[Date "2016.12.17"]
[Round "2.9"]
[White "Pogorelov, Ruslan"]
[Black "Van Foreest, Jorden"]
[Result "0-1"]
[WhiteElo "2355"]
[BlackElo "2605"]
[ECO "D45"]
[WhiteFed "UKR"]
[BlackFed "NED"]
[FCGameId "1358013814"]
[TimeControl "5400+30"]

1. Nf3 d5 2. d4 Nf6 3. c4 c6 4. Nc3 e6 5. e3 Nbd7 6. Qc2 b6 7. Bd3 Bb7 8. O-O  Be7 9. e4 dxe4 10. Nxe4 Nxe4 11. Bxe4 Nf6 12. Bf4 O-O 13. Rad1 Nxe4 14. Qxe4 Qc8  15. Qe3 Re8 16. c5 Ba6 17. Rfe1 Bc4 18. Nd2 Bd5 19. Ne4 Bxe4 20. Qxe4 Rd8 21.  Rd3 Rd5 22. Rh3 g6 23. Be5 Qd7 24. Qf4 f6 25. Qh4 Bd8 26. Bd6 bxc5 27. dxc5 e5  28. Qa4 Bc7 29. Bxc7 Qxc7 30. Rc3 Rad8 31. g3 Kg7 32. Re2 Rd1+ 33. Kg2 R8d4 34.  Qa6 Qd7 35. f3 Rb1 36. Rb3 Rd2 0-1

[Event "SUNWAY"]
[Date "2016.12.17"]
[Round "2.10"]
[White "Vorobiov, Evgeny E."]
[Black "Olivares Canelles, Francisco"]
[Result "1-0"]
[WhiteElo "2583"]
[BlackElo "2336"]
[ECO "A08"]
[WhiteFed "RUS"]
[BlackFed "CUB"]
[FCGameId "-2034698744"]
[TimeControl "5400+30"]

1. Nf3 {[%clk 1:30:57]} Nf6 {[%clk 0:51:44]} 2. g3 {[%clk 1:31:04]} d5  {[%clk 0:51:58]} 3. Bg2 {[%clk 1:31:29]} e6 {[%clk 0:52:18]} 4. O-O  {[%clk 1:31:51]} Be7 {[%clk 0:52:42]} 5. d3 {[%clk 1:32:18]} O-O  {[%clk 0:52:50]} 6. Nbd2 {[%clk 1:32:44]} c5 {[%clk 0:52:59]} 7. e4  {[%clk 1:33:09]} Nc6 {[%clk 0:53:17]} 8. Re1 {[%clk 1:33:34]} b5  {[%clk 0:53:18]} 9. e5 {[%clk 1:33:22]} Nd7 {[%clk 0:53:38]} 10. Nf1  {[%clk 1:33:23]} Qc7 {[%clk 0:53:34]} 11. Bf4 {[%clk 1:33:20]} Bb7  {[%clk 0:53:49]} 12. h4 {[%clk 1:33:13]} Rfc8 {[%clk 0:53:57]} 13. N1h2  {[%clk 1:27:23]} Qd8 {[%clk 0:45:47]} 14. h5 {[%clk 1:24:09]} h6  {[%clk 0:45:55]} 15. Qd2 {[%clk 1:19:50]} Bf8 {[%clk 0:41:51]} 16. g4  {[%clk 1:18:13]} Ne7 {[%clk 0:41:54]} 17. g5 Nf5 {[%clk 0:36:53]} 18. Bh3  {[%clk 1:10:56]} Rc6 {[%clk 0:35:22]} 19. gxh6 {[%clk 1:00:38]} gxh6  {[%clk 0:30:13]} 20. Bxf5 exf5 {[%clk 0:30:32]} 21. Bg3 {[%clk 0:50:05]} Be7  {[%clk 0:25:13]} 22. Qf4 {[%clk 0:46:27]} Bc8 {[%clk 0:25:34]} 23. Bh4  {[%clk 0:40:00]} Nf8 {[%clk 0:25:16]} 24. Kh1 {[%clk 0:36:56]} d4  {[%clk 0:18:48]} 25. Bxe7 {[%clk 0:34:43]} Qxe7 {[%clk 0:19:10]} 26. Rg1+  {[%clk 0:35:00]} Kh7 {[%clk 0:18:17]} 27. Qg3 Ng6 {[%clk 0:18:24]} 28. hxg6+  {[%clk 0:33:38]} fxg6 {[%clk 0:18:47]} 29. e6 {[%clk 0:22:11]} Rxe6  {[%clk 0:19:12]} 30. Rae1 {[%clk 0:22:19]} g5 {[%clk 0:17:55]} 31. Rxe6  {[%clk 0:20:50]} Bxe6 {[%clk 0:17:55]} 32. Re1 {[%clk 0:14:00]} Re8  {[%clk 0:14:25]} 33. Kg1 b4 {[%clk 0:09:53]} 34. Qe5 {[%clk 0:11:36]} g4  {[%clk 0:08:00]} 35. Nd2 {[%clk 0:10:35]} Qg5 {[%clk 0:03:32]} 36. Qc7+  {[%clk 0:10:09]} Re7 37. Qd6 {[%clk 0:09:49]} Rg7 {[%clk 0:02:37]} 38. Rxe6  {[%clk 0:05:49]} Qxd2 {[%clk 0:02:27]} 39. Nf1 {[%clk 0:05:48]} Qg5  {[%clk 0:01:53]} 40. Ng3 {[%clk 0:34:13]} h5 {[%clk 0:31:53]} 41. Rf6  {[%clk 0:31:53]} h4 {[%clk 0:18:59]} 42. Nxf5 {[%clk 0:30:09]} Qc1+  {[%clk 0:18:48]} 43. Kg2 {[%clk 0:30:22]} h3+ {[%clk 0:18:17]} 44. Kh2  {[%clk 0:30:33]} 1-0

[Event "SUNWAY"]
[Date "2016.12.17"]
[Round "2.11"]
[White "Epishin, Vladimir"]
[Black "Harsha Bharathakoti"]
[Result "1/2-1/2"]
[WhiteElo "2571"]
[BlackElo "2332"]
[ECO "E17"]
[WhiteFed "RUS"]
[BlackFed "IND"]
[FCGameId "-402066161"]
[TimeControl "5400+30"]

1. d4 Nf6 {[%clk 1:29:09]} 2. Nf3 {[%clk 1:31:10]} e6 {[%clk 1:29:27]} 3. c4  {[%clk 1:30:13]} b6 {[%clk 1:29:20]} 4. g3 {[%clk 1:28:56]} Bb7 {[%clk 1:29:24]}  5. Bg2 {[%clk 1:29:18]} Be7 {[%clk 1:29:46]} 6. Nc3 {[%clk 1:29:11]} Ne4  {[%clk 1:28:02]} 7. Bd2 {[%clk 1:28:45]} f5 {[%clk 1:25:55]} 8. Qc2  {[%clk 1:26:22]} Nxc3 {[%clk 1:20:52]} 9. Bxc3 {[%clk 1:25:33]} Be4  {[%clk 1:21:04]} 10. Qa4 {[%clk 1:24:10]} O-O {[%clk 1:20:55]} 11. O-O  {[%clk 1:24:36]} Bf6 {[%clk 1:16:07]} 12. Rfd1 {[%clk 1:20:38]} d6  {[%clk 1:02:30]} 13. Rac1 {[%clk 1:18:39]} Qe8 {[%clk 0:56:53]} 14. Qxe8  {[%clk 1:15:54]} Rxe8 {[%clk 0:55:45]} 15. c5 {[%clk 1:15:24]} Nd7  {[%clk 0:43:51]} 16. b4 {[%clk 1:10:20]} Be7 {[%clk 0:35:46]} 17. cxd6  {[%clk 1:06:23]} cxd6 {[%clk 0:35:58]} 18. Nd2 {[%clk 1:04:19]} Bxg2  {[%clk 0:36:01]} 19. Kxg2 {[%clk 1:04:45]} Nf6 {[%clk 0:35:54]} 20. Nb3  {[%clk 1:04:40]} Rec8 {[%clk 0:34:29]} 21. Bd2 {[%clk 1:04:49]} d5  {[%clk 0:27:34]} 22. Rxc8+ {[%clk 1:02:40]} Rxc8 {[%clk 0:27:45]} 23. Rc1  {[%clk 1:03:09]} Rc4 {[%clk 0:26:00]} 24. f3 {[%clk 1:02:52]} Kf7  {[%clk 0:24:02]} 1/2-1/2

[Event "SUNWAY"]
[Date "2016.12.17"]
[Round "2.12"]
[White "Nihal Sarin"]
[Black "Lopez Martinez, Josep Manuel"]
[Result "1/2-1/2"]
[WhiteElo "2340"]
[BlackElo "2552"]
[ECO "D80"]
[WhiteFed "IND"]
[BlackFed "ESP"]
[FCGameId "-449562120"]
[TimeControl "5400+30"]

1. d4 {[%clk 1:30:57]} Nf6 {[%clk 1:27:51]} 2. c4 {[%clk 1:31:21]} g6  {[%clk 1:27:40]} 3. Nc3 {[%clk 1:31:45]} d5 {[%clk 1:27:45]} 4. Bg5  {[%clk 1:29:32]} Ne4 {[%clk 1:27:42]} 5. Bh4 {[%clk 1:29:39]} c5  {[%clk 1:27:39]} 6. cxd5 {[%clk 1:29:40]} Nxc3 {[%clk 1:27:57]} 7. bxc3  {[%clk 1:30:04]} Qxd5 {[%clk 1:28:20]} 8. e3 {[%clk 1:30:15]} cxd4  {[%clk 1:21:30]} 9. Qxd4 {[%clk 1:22:09]} Qxd4 {[%clk 1:20:35]} 10. cxd4  {[%clk 1:22:33]} Bg7 {[%clk 1:16:16]} 11. Nf3 {[%clk 1:19:58]} Nc6  {[%clk 1:15:55]} 12. Rb1 {[%clk 1:17:43]} b6 {[%clk 1:13:27]} 13. Bb5  {[%clk 1:16:54]} Bd7 {[%clk 1:13:25]} 14. Ke2 {[%clk 1:16:43]} Na5  {[%clk 0:56:21]} 15. Rhc1 Bxb5+ {[%clk 0:53:20]} 16. Rxb5 {[%clk 1:14:56]} e6  {[%clk 0:41:07]} 17. Rc7 {[%clk 1:04:01]} O-O {[%clk 0:41:13]} 18. Rb1  {[%clk 1:04:25]} h6 {[%clk 0:37:14]} 19. Be7 {[%clk 1:00:15]} Rfc8  {[%clk 0:36:54]} 20. Rbc1 {[%clk 1:00:39]} Rxc7 {[%clk 0:37:18]} 21. Rxc7  {[%clk 1:01:05]} b5 {[%clk 0:37:32]} 22. Nd2 {[%clk 1:01:29]} Bf8  {[%clk 0:37:25]} 23. Bxf8 {[%clk 1:01:50]} Kxf8 {[%clk 0:37:34]} 24. Kd3  {[%clk 1:01:31]} a6 {[%clk 0:37:31]} 25. Kc3 {[%clk 0:32:48]} Rb8  {[%clk 0:37:31]} 26. Kb4 {[%clk 0:30:41]} Nc4 {[%clk 0:37:32]} 27. Ne4  {[%clk 0:25:14]} a5+ {[%clk 0:33:55]} 28. Kc5 {[%clk 0:23:18]} Nb2  {[%clk 0:33:11]} 29. Ra7 {[%clk 0:22:49]} a4 {[%clk 0:28:06]} 30. Nf6  {[%clk 0:19:54]} Nd3+ {[%clk 0:27:13]} 31. Kc6 {[%clk 0:20:01]} Kg7  {[%clk 0:27:20]} 32. Nd7 {[%clk 0:20:25]} Nb4+ {[%clk 0:26:40]} 33. Kc5  {[%clk 0:20:49]} Nd3+ {[%clk 0:26:58]} 34. Kc6 {[%clk 0:21:14]} Nb4+ {-error}  1/2-1/2

[Event "SUNWAY"]
[Date "2016.12.17"]
[Round "2.13"]
[White "Vehi Bach, Victor Manuel"]
[Black "Burmakin, Vladimir"]
[Result "1/2-1/2"]
[WhiteElo "2332"]
[BlackElo "2535"]
[ECO "B12"]
[WhiteFed "ESP"]
[BlackFed "RUS"]
[FCGameId "-173960234"]
[TimeControl "5400+30"]

1. e4 {[%clk 1:30:57]} c6 {[%clk 1:30:55]} 2. d4 {[%clk 1:31:18]} d5  {[%clk 1:31:21]} 3. e5 {[%clk 1:31:40]} Bf5 {[%clk 1:31:47]} 4. Nd2  {[%clk 1:31:59]} e6 {[%clk 1:32:00]} 5. Nb3 {[%clk 1:32:20]} Nd7  {[%clk 1:32:04]} 6. Nf3 {[%clk 1:32:30]} Ne7 {[%clk 1:31:58]} 7. Be2  {[%clk 1:32:40]} h6 {[%clk 1:31:24]} 8. O-O {[%clk 1:32:15]} Bh7  {[%clk 1:31:50]} 9. Bd2 {[%clk 1:30:08]} Ng6 {[%clk 1:32:11]} 10. a4  {[%clk 1:28:10]} Be7 {[%clk 1:32:28]} 11. a5 {[%clk 1:28:05]} O-O  {[%clk 1:32:19]} 12. c4 {[%clk 1:26:17]} dxc4 {[%clk 1:28:52]} 13. Bxc4  {[%clk 1:26:33]} a6 {[%clk 1:29:17]} 14. Qe2 {[%clk 1:22:17]} Qc7  {[%clk 1:23:08]} 15. Rfe1 {[%clk 1:16:20]} Rfc8 {[%clk 1:21:32]} 16. Rac1  {[%clk 1:11:31]} Qd8 {[%clk 1:20:43]} 17. Red1 {[%clk 1:03:21]} Qe8  {[%clk 1:13:31]} 18. h3 {[%clk 0:57:54]} Bf8 {[%clk 1:04:58]} 19. g3  {[%clk 0:48:39]} Ne7 {[%clk 0:50:32]} 20. Bb4 {[%clk 0:47:22]} Nd5  {[%clk 0:50:53]} 21. Bxf8 Qxf8 {[%clk 0:50:44]} 22. Nfd2 {[%clk 0:42:08]} Qb4  {[%clk 0:47:41]} 23. Bd3 {[%clk 0:38:32]} Bxd3 {[%clk 0:45:53]} 24. Qxd3 Nc7 25.  Ne4 {[%clk 0:35:12]} Nb5 {[%clk 0:34:17]} 26. Rc4 {[%clk 0:34:16]} Qe7  {[%clk 0:33:42]} 27. Nbc5 {[%clk 0:28:27]} Rab8 28. b4 {[%clk 0:20:21]} Rd8  {[%clk 0:33:55]} 29. Qf3 {[%clk 0:17:29]} Nf8 {[%clk 0:34:05]} 30. Qg4  {[%clk 0:13:39]} Kh8 31. Na4 {[%clk 0:12:10]} Ng6 {[%clk 0:21:45]} 32. Nb6  {[%clk 0:09:45]} Qe8 {[%clk 0:20:02]} 33. Nc3 {[%clk 0:07:07]} Ne7  {[%clk 0:12:13]} 34. Nxb5 {[%clk 0:06:42]} axb5 {[%clk 0:05:29]} 35. Rc5 Kg8 36.  Qe4 {[%clk 0:05:43]} Nc8 {[%clk 0:02:29]} 37. Nxc8 {[%clk 0:04:52]} Rbxc8 38.  Rdc1 {[%clk 0:03:12]} Ra8 {[%clk 0:02:21]} 39. f4 {[%clk 0:02:04]} Rd7  {[%clk 0:02:26]} 40. Rd1 {[%clk 0:32:10]} Qe7 {[%clk 0:32:18]} 41. Kf2  {[%clk 0:27:52]} Rad8 {[%clk 0:32:43]} 42. Ke3 {[%clk 0:26:19]} Rd5  {[%clk 0:27:03]} 43. Rd2 g5 44. fxg5 {[%clk 0:09:49]} Qxg5+ {[%clk 0:26:02]} 45.  Qf4 Rxc5 {[%clk 0:20:46]} 46. dxc5 {[%clk 0:08:05]} Rd5 {[%clk 0:17:43]} 47.  Rxd5 {[%clk 0:05:59]} exd5 {[%clk 0:18:07]} 48. h4 {[%clk 0:04:26]} Qg6  {[%clk 0:17:59]} 49. Kf3 {[%clk 0:03:39]} Kg7 {[%clk 0:14:50]} 50. Ke3  {[%clk 0:03:23]} h5 51. Kd4 {[%clk 0:03:09]} Qh6 {[%clk 0:13:53]} 52. Qf2  {[%clk 0:02:49]} Kg8 {[%clk 0:13:17]} 53. Qf4 {[%clk 0:03:01]} Kg7  {[%clk 0:13:19]} 54. Qf2 {[%clk 0:03:30]} Qc1 {[%clk 0:11:53]} 55. Qf6+  {[%clk 0:03:23]} Kg8 {[%clk 0:12:21]} 56. Qf4 {[%clk 0:03:17]} Qd1+ 57. Ke3 Kf8  {[%clk 0:05:23]} 58. Kf2 {[%clk 0:02:38]} Qc2+ {[%clk 0:05:31]} 59. Ke3  {[%clk 0:02:58]} Qg6 {[%clk 0:05:28]} 60. Kd4 {[%clk 0:02:56]} Ke7  {[%clk 0:05:41]} 61. Ke3 {[%clk 0:01:24]} Ke6 {[%clk 0:05:26]} 62. Kd4  {[%clk 0:01:26]} f6 {[%clk 0:04:56]} 63. exf6 {[%clk 0:01:23]} Qxf6+  {[%clk 0:05:16]} 64. Ke3 Qe5+ {[%clk 0:04:38]} 65. Kf3 {[%clk 0:02:15]} Qf5  {[%clk 0:04:43]} 66. Ke3 {[%clk 0:02:39]} Qxf4+ {[%clk 0:03:23]} 67. Kxf4 Kf6  {[%clk 0:03:39]} 68. g4 {[%clk 0:03:20]} hxg4 {[%clk 0:04:02]} 69. Kxg4  {[%clk 0:03:44]} Kg6 {[%clk 0:04:22]} 70. h5+ {[%clk 0:04:05]} Kh6  {[%clk 0:04:36]} 71. Kh4 d4 {[%clk 0:03:57]} 72. Kg4 {[%clk 0:05:02]} d3  {[%clk 0:04:18]} 73. Kf3 {[%clk 0:05:28]} Kxh5 {[%clk 0:04:28]} 74. Ke3  {[%clk 0:05:57]} Kg4 75. Kxd3 {[%clk 0:06:19]} Kf5 {[%clk 0:04:57]} 76. Kd4 Kf4  {[%clk 0:04:46]} 77. Kd3 {[%clk 0:06:57]} Kf3 {[%clk 0:04:54]} 78. Kd4  {[%clk 0:07:04]} Kf4 {[%clk 0:03:34]} 79. Kd3 {[%clk 0:07:26]} 1/2-1/2

[Event "SUNWAY"]
[Date "2016.12.17"]
[Round "2.14"]
[White "Shyam, Sundar M."]
[Black "Gu, Xiaobing"]
[Result "1/2-1/2"]
[WhiteElo "2532"]
[BlackElo "2324"]
[ECO "B50"]
[WhiteFed "IND"]
[BlackFed "CHN"]
[FCGameId "992469633"]
[TimeControl "5400+30"]

1. e4 {[%clk 1:30:52]} c5 {[%clk 1:28:23]} 2. Nf3 {[%clk 1:31:07]} d6  {[%clk 1:28:47]} 3. Nc3 {[%clk 1:31:04]} Nf6 {[%clk 1:28:35]} 4. e5  {[%clk 1:31:08]} dxe5 {[%clk 1:28:27]} 5. Nxe5 {[%clk 1:31:34]} e6  {[%clk 1:26:36]} 6. a4 {[%clk 1:29:54]} Be7 {[%clk 1:25:39]} 7. g3  {[%clk 1:28:44]} Nbd7 {[%clk 1:23:25]} 8. Nc4 {[%clk 1:28:53]} Nb6  {[%clk 1:22:43]} 9. Nxb6 {[%clk 1:23:29]} Qxb6 {[%clk 1:22:47]} 10. Bg2  {[%clk 1:18:51]} Bd7 {[%clk 1:20:14]} 11. a5 {[%clk 1:18:17]} Qc7  {[%clk 1:20:31]} 12. a6 {[%clk 1:18:34]} Bc6 {[%clk 1:20:49]} 13. O-O  {[%clk 1:18:54]} b6 {[%clk 1:03:30]} 14. Nb5 {[%clk 1:08:53]} Qd7  {[%clk 1:03:00]} 15. Bxc6 {[%clk 1:08:58]} Qxc6 {[%clk 1:03:26]} 16. Qe2  {[%clk 1:09:09]} O-O {[%clk 1:03:34]} 17. b3 {[%clk 1:09:06]} Ne4  {[%clk 1:01:46]} 18. Ra4 f5 {[%clk 0:50:48]} 19. d4 {[%clk 1:02:02]} cxd4  {[%clk 0:40:11]} 20. Nxd4 {[%clk 1:02:15]} Qd5 {[%clk 0:40:26]} 21. Qc4  {[%clk 1:00:06]} Qxc4 {[%clk 0:27:06]} 22. Rxc4 Rfc8 23. Rxc8+ {[%clk 0:32:25]}  Rxc8 {[%clk 0:27:34]} 24. c4 {[%clk 0:32:50]} Kf7 {[%clk 0:26:46]} 25. Be3  {[%clk 0:31:44]} Nc5 {[%clk 0:20:27]} 26. Ra1 {[%clk 0:24:50]} Bf6  {[%clk 0:20:32]} 27. Nb5 {[%clk 0:25:09]} Bxa1 {[%clk 0:09:59]} 28. Nd6+  {[%clk 0:25:34]} Kf6 {[%clk 0:10:21]} 29. Nxc8 {[%clk 0:26:00]} Nxa6  {[%clk 0:10:27]} 30. Nxa7 {[%clk 0:26:24]} Nc5 {[%clk 0:10:17]} 31. b4  {[%clk 0:26:39]} Na4 32. f4 e5 {[%clk 0:07:34]} 33. Kf1 {[%clk 0:09:54]} exf4  {[%clk 0:07:47]} 34. gxf4 Ke6 {[%clk 0:07:57]} 35. Ke2 {[%clk 0:09:24]} Bf6  {[%clk 0:06:20]} 36. Nc8 {[%clk 0:05:23]} Bd8 {[%clk 0:01:07]} 37. Bd4  {[%clk 0:02:40]} Bc7 {[%clk 0:01:36]} 38. Kd3 {[%clk 0:01:50]} Kd7  {[%clk 0:01:15]} 39. Na7 {[%clk 0:02:16]} Bxf4 {[%clk 0:01:02]} 40. Kc2  {[%clk 0:32:29]} Bxh2 {[%clk 0:30:34]} 41. Kb3 h5 {[%clk 0:16:46]} 42. Kxa4  {[%clk 0:31:32]} h4 {[%clk 0:16:45]} 43. Bxb6 {[%clk 0:25:28]} h3  {[%clk 0:14:27]} 44. c5 Bc7 {[%clk 0:11:59]} 45. c6+ {[%clk 0:26:20]} Kd8  {[%clk 0:12:07]} 46. Bxc7+ {[%clk 0:23:57]} Kxc7 {[%clk 0:12:32]} 47. Nb5+  {[%clk 0:24:26]} Kxc6 {[%clk 0:12:39]} 48. Nd4+ {[%clk 0:24:52]} Kd5  {[%clk 0:12:53]} 49. Nxf5 {[%clk 0:24:42]} Ke4 {[%clk 0:13:06]} 50. Ng3+  {[%clk 0:24:57]} Kf3 {[%clk 0:13:23]} 51. Nh1 {[%clk 0:23:37]} Kg2  {[%clk 0:13:33]} 52. b5 {[%clk 0:24:05]} Kxh1 {[%clk 0:13:57]} 53. b6  {[%clk 0:24:33]} h2 {[%clk 0:14:20]} 54. b7 {[%clk 0:25:01]} Kg1  {[%clk 0:14:35]} 55. b8=Q {[%clk 0:25:27]} h1=Q {[%clk 0:15:00]} 56. Qa7+  {[%clk 0:25:52]} 1/2-1/2

[Event "SUNWAY"]
[Date "2016.12.17"]
[Round "2.15"]
[White "Pradeep Kumar R A"]
[Black "Del Rio De Angelis, Salvador G."]
[Result "1/2-1/2"]
[WhiteElo "2330"]
[BlackElo "2530"]
[ECO "A06"]
[WhiteFed "IND"]
[BlackFed "ESP"]
[FCGameId "-766070981"]
[TimeControl "5400+30"]

1. Nf3 d5 2. g3 Nf6 3. Bg2 e6 4. O-O c5 5. c4 d4 6. e3 Nc6 7. exd4 cxd4 8. Re1  Bd6 9. d3 O-O 10. Bg5 h6 11. Bxf6 Qxf6 12. Nbd2 Qd8 13. a3 a5 14. Qc2 Qc7 15. c5  Be7 16. Nc4 Bxc5 17. Nce5 Nxe5 18. Nxe5 Bd6 19. Qxc7 Bxc7 20. Rac1 Bd8 21. Rc4  Bb6 22. Rc2 a4 23. Rec1 Rd8 24. Nc4 Bc7 25. Nd2 Bb6 26. Nc4 Bc7 27. Nd2 Bb6 28.  Nb1 1/2-1/2

[Event "SUNWAY"]
[Date "2016.12.17"]
[Round "2.16"]
[White "Vidal Zamora, Alex"]
[Black "Aroshidze, Levan"]
[Result "1-0"]
[WhiteElo "2309"]
[BlackElo "2517"]
[ECO "D48"]
[WhiteFed "ESP"]
[BlackFed "ESP"]
[FCGameId "1068185702"]
[TimeControl "5400+30"]

1. d4 {[%clk 1:30:57]} Nf6 {[%clk 1:28:09]} 2. c4 {[%clk 1:31:17]} e6  {[%clk 1:25:58]} 3. Nf3 {[%clk 1:30:53]} d5 {[%clk 1:21:34]} 4. Nc3  {[%clk 1:28:01]} c6 {[%clk 1:21:58]} 5. e3 {[%clk 1:27:34]} Nbd7  {[%clk 1:22:20]} 6. Bd3 {[%clk 1:26:30]} dxc4 {[%clk 1:22:43]} 7. Bxc4  {[%clk 1:26:52]} b5 {[%clk 1:23:05]} 8. Bd3 {[%clk 1:25:53]} a6 {[%clk 1:23:18]}  9. a4 {[%clk 1:18:22]} b4 {[%clk 1:21:42]} 10. Ne4 {[%clk 1:16:56]} c5  {[%clk 1:02:19]} 11. Nxf6+ {[%clk 0:56:15]} Nxf6 {[%clk 1:02:00]} 12. b3  {[%clk 0:55:39]} cxd4 {[%clk 0:57:58]} 13. Nxd4 {[%clk 0:54:23]} Bb7  {[%clk 0:58:21]} 14. O-O {[%clk 0:50:51]} Qd5 {[%clk 0:43:53]} 15. Nf3  {[%clk 0:45:53]} Rd8 {[%clk 0:41:21]} 16. Ne1 {[%clk 0:45:08]} Ne4  {[%clk 0:34:43]} 17. Bb2 {[%clk 0:35:35]} Nc5 {[%clk 0:31:24]} 18. Bc2  {[%clk 0:34:45]} Qxd1 {[%clk 0:29:59]} 19. Bxd1 {[%clk 0:34:28]} Bd5  {[%clk 0:29:53]} 20. Rb1 {[%clk 0:34:07]} Nxb3 {[%clk 0:19:44]} 21. Bxb3  {[%clk 0:32:21]} Bxb3 {[%clk 0:20:09]} 22. Bxg7 {[%clk 0:32:41]} Ba2  {[%clk 0:19:43]} 23. Bxf8 {[%clk 0:30:08]} Bxb1 {[%clk 0:19:54]} 24. Bxb4  {[%clk 0:30:36]} Bd3 {[%clk 0:17:49]} 25. Nxd3 {[%clk 0:30:02]} Rxd3  {[%clk 0:18:13]} 26. Rb1 {[%clk 0:26:23]} Kd7 {[%clk 0:14:23]} 27. Be1  {[%clk 0:22:16]} Rc8 {[%clk 0:13:43]} 28. a5 {[%clk 0:21:10]} Rd5  {[%clk 0:12:22]} 29. g3 {[%clk 0:20:00]} Rdc5 {[%clk 0:12:06]} 30. Kf1  {[%clk 0:18:14]} Rc1 {[%clk 0:11:12]} 31. Rb7+ {[%clk 0:15:18]} R8c7  {[%clk 0:10:21]} 32. Rb3 {[%clk 0:11:56]} R7c2 {[%clk 0:09:24]} 33. e4  {[%clk 0:11:37]} Ra2 {[%clk 0:09:08]} 34. Re3 {[%clk 0:11:18]} Raa1  {[%clk 0:07:59]} 35. f4 {[%clk 0:10:58]} Rxa5 {[%clk 0:08:03]} 36. Ke2  {[%clk 0:10:33]} Ra2+ {[%clk 0:08:18]} 37. Kf3 {[%clk 0:11:01]} Rxh2  {[%clk 0:07:26]} 38. Kg4 {[%clk 0:11:30]} h6 {[%clk 0:03:03]} 39. Bb4  {[%clk 0:08:41]} Rc4 {[%clk 0:02:54]} 40. Bc3 {[%clk 0:38:48]} Rxe4  {[%clk 0:32:38]} 1-0

[Event "SUNWAY"]
[Date "2016.12.17"]
[Round "2.17"]
[White "Lemos, Damian"]
[Black "Domingo Nunez, Alejandro"]
[Result "1/2-1/2"]
[WhiteElo "2516"]
[BlackElo "2317"]
[ECO "E62"]
[WhiteFed "ARG"]
[BlackFed "ESP"]
[FCGameId "1931160558"]
[TimeControl "5400+30"]

1. Nf3 Nf6 2. d4 g6 3. g3 Bg7 4. Bg2 O-O 5. O-O d6 6. c4 Nc6 7. Nc3 Bg4 8. Be3  Qd7 9. Rc1 Bxf3 10. exf3 e5 11. dxe5 Nxe5 12. b3 Rfe8 13. h3 a6 14. f4 Nc6 15.  Nd5 Ne4 16. b4 f5 17. b5 Ne7 18. b6 Nxd5 19. Qxd5+ Qe6 20. bxc7 Qxd5 21. cxd5  Nc3 22. Bf3 Rac8 23. Bb6 Nxa2 24. Rc4 Nc3 25. Kg2 Re7 26. Rc1 Nb5 27. Rb4 Nc3  28. Rc2 Kf7 29. g4 1/2-1/2